fUST/lending_fUST_20260128
["ID","MTS","AMOUNT","RATE_DAILY","PERIOD"]
[403832720,1769575345813,-800.0,9.94e-05,2]
[403832721,1769575345840,-800.0,9.94e-05,2]
[403832722,1769575345866,-800.0,9.957e-05,2]
[403832723,1769575345957,-400.01,9.983e-05,2]
[403832724,1769575351634,-399.99,9.983e-05,2]
[403832725,1769575351662,-800.0,9.992e-05,2]
[403832726,1769575351695,-300.0,0.00010138,2]
[403832727,1769575351725,-300.0,0.00010138,2]
[403832728,1769575351753,-300.0,0.00010138,2]
[403832729,1769575351782,-300.0,0.00010138,2]
[403832730,1769575351811,-300.0,0.00010138,2]
[403832731,1769575351840,-300.0,0.00010138,2]
[403832732,1769575351868,-300.0,0.00010138,2]
[403832733,1769575351898,-300.0,0.00010138,2]
[403832734,1769575351928,-300.0,0.00010138,2]
[403832735,1769575351957,-300.0,0.00010138,2]
[403832736,1769575351987,-300.0,0.00010138,2]
[403832737,1769575352016,-300.0,0.00010138,2]
[403832738,1769575352046,-100.03,0.00010138,2]
[403832739,1769575352406,-199.97,0.00010138,2]
[403832740,1769575401782,-5000.0,0.00010037,2]
[403832741,1769575401817,-0.01,0.00010138,2]
[403832742,1769575407886,-299.99,0.00010138,2]
[403832743,1769575407918,-300.0,0.00010138,2]
[403832744,1769575407949,-600.0,0.0001034,2]
[403832745,1769575408138,-300.0,0.00010902,2]
[403832746,1769575408170,-500.0,0.00010903,2]
[403832747,1769575408198,-500.0,0.00010903,2]
[403832748,1769575408228,-500.0,0.00010903,2]
[403832749,1769575408258,-500.0,0.00010903,2]
[403832750,1769575408286,-500.0,0.00010903,2]
[403832751,1769575408315,-500.0,0.00010903,2]
[403832752,1769575408343,-316.24951471,0.00010903,2]
[403832753,1769575408503,-367.53097058,0.00010903,2]
[403832754,1769575410925,-599.99,0.00010037,2]
[403832755,1769575410953,-132.46902942,0.00010903,2]
[403832756,1769575410982,-500.0,0.00010903,2]
[403832757,1769575411010,-500.0,0.00010903,2]
[403832758,1769575411039,-500.0,0.00010903,2]
[403832759,1769575411067,-436.73437821,0.00010903,2]
[403832760,1769575411097,-500.0,0.00010903,2]
[403832761,1769575411129,-500.0,0.00010903,2]
[403832762,1769575411158,-500.0,0.00010903,2]
[403832763,1769575411187,-500.0,0.00010903,2]
[403832764,1769575411218,-161.62318474,0.00010903,2]
[403832765,1769575411371,-338.37681526,0.00010903,2]
[403832766,1769575429704,-174.43032577,0.00010848,2]
[403832767,1769575429735,-500.0,0.00010903,2]
[403832768,1769575429768,-500.0,0.00010903,2]
[403832769,1769575429797,-500.0,0.00010903,2]
[403832770,1769575429827,-497.48400347,0.00010903,2]
[403832771,1769575429856,-500.0,0.00010903,2]
[403832772,1769575429886,-500.0,0.00010903,2]
[403832773,1769575429916,-500.0,0.00010903,2]
[403832774,1769575429944,-500.0,0.00010903,2]
[403832775,1769575429974,-500.0,0.00010903,2]
[403832776,1769575430003,-156.18134152,0.00010903,2]
[403832777,1769575430201,-343.81865848,0.00010903,2]
[403832778,1769575430229,-584.66863584,0.00010903,2]
[403832779,1769575430258,-500.0,0.00010903,2]
[403832780,1769575430288,-500.0,0.00010903,2]
[403832781,1769575430319,-500.0,0.00010903,2]
[403832782,1769575430346,-500.0,0.00010903,2]
[403832783,1769575430375,-500.0,0.00010903,2]
[403832784,1769575430405,-500.0,0.00010903,2]
[403832785,1769575430436,-500.0,0.00010903,2]
[403832786,1769575430465,-200.0,0.00010903,2]
[403832787,1769575430675,500.0,0.00034855,120]
[403832788,1769575430768,500.0,0.00034855,120]
[403832789,1769575430964,-143.81865848,0.00010904,2]
[403832790,1769575431001,500.0,0.00034855,120]
[403832791,1769575431152,-200.0,0.00010904,2]
[403832792,1769575431172,-743.03541136,0.00010904,2]
[403832793,1769575431221,500.0,0.00034855,120]
[403832794,1769575431242,-10000.01,0.00010904,2]
[403832795,1769575431255,-6120.11006655,0.00010904,2]
[403832796,1769575431265,-222.43409317,0.00010913,2]
[403832797,1769575431388,500.0,0.00034855,120]
[403832798,1769575431449,500.0,0.00034855,120]
[403832799,1769575431491,400.664793,0.00034855,120]
[403832800,1769575432706,-5000.0,0.0001074,2]
[403832801,1769575442420,0.01,0.00010913,2]
[403832802,1769575442442,299.99,0.00010913,2]
[403832803,1769575449221,5000.0,0.00010914,2]
[403832804,1769575457068,847.64962762,0.00010914,2]
[403832805,1769575476939,-5000.0,0.00010805,2]
[403832806,1769575477133,-3852.37037238,0.00010914,2]
[403832807,1769575477211,-10000.01,0.00010914,2]
[403832808,1769575479971,-10000.01,0.00010914,2]
[403832809,1769575483096,-10000.01,0.00010914,2]
[403832810,1769575483459,-10000.01,0.00010914,2]
[403832811,1769575483485,-10000.01,0.00010914,2]
[403832817,1769575628221,-10000.01,9.804e-05,2]
[403832820,1769575634053,-4021.6110705,9.804e-05,2]
[403832821,1769575653229,-10000.01,0.0001,2]
[403832822,1769575653515,-3058.88069827,0.0001,2]
[403832823,1769575653546,-300.0,0.00010199,2]
[403832824,1769575653581,-300.0,0.00010199,2]
[403832825,1769575653609,-300.0,0.00010199,2]
[403832826,1769575653638,-300.0,0.00010199,2]
[403832827,1769575653667,-300.0,0.00010199,2]
[403832828,1769575653696,-300.0,0.00010199,2]
[403832829,1769575653809,-282.24860346,0.00010199,2]
[403832830,1769575658915,-17.75139654,0.00010199,2]
[403832831,1769575658947,-300.0,0.00010199,2]
[403832832,1769575658979,-300.0,0.00010199,2]
[403832833,1769575659010,-300.0,0.00010199,2]
[403832834,1769575659040,-300.0,0.00010199,2]
[403832835,1769575659070,-300.0,0.00010199,2]
[403832836,1769575659100,-300.0,0.00010199,2]
[403832837,1769575659130,-300.0,0.00010199,2]
[403832838,1769575659160,-300.0,0.00010199,2]
[403832839,1769575659187,-285.28332853,0.00010694,2]
[403832840,1769575659214,-325.13291214,0.00010695,2]
[403832841,1769575659379,-3943.67472558,0.00010696,2]
[403832842,1769575661937,-1056.32527442,0.00010696,2]
[403832843,1769575661964,-1200.0,0.00010803,2]
[403832878,1769575805727,-559.0,9.924e-05,2]
[403832879,1769575805757,-287.5816964,9.924e-05,2]
[403832880,1769575805790,-3306.8466072,0.00010589,2]
[403832881,1769575805851,-1693.1533928,0.00010589,2]
[403832882,1769575809124,-1200.0,0.00010695,2]
[403832883,1769575809154,-3710.70638448,0.00010696,2]
[403832884,1769575809197,-178.59723104,0.00010696,2]
[403832885,1769575815959,-174.43032577,0.00010859,2]
[403832886,1769575815987,-500.0,0.00010907,2]
[403832887,1769575816017,-500.0,0.00010907,2]
[403832888,1769575816046,-201.93286099,0.00010907,2]
[403832889,1769575816074,-159.88698825,0.00010907,2]
[403832890,1769575816103,-500.0,0.00010907,2]
[403832891,1769575816132,-396.61291757,0.00010907,2]
[403832892,1769575816161,-209.40437684,0.00010907,2]
[403832893,1769575816189,-500.0,0.00010907,2]
[403832894,1769575816218,-217.15233878,0.00010907,2]
[403832895,1769575816247,-500.0,0.00010907,2]
[403832896,1769575816275,-225.18697532,0.00010907,2]
[403832897,1769575816305,-500.0,0.00010907,2]
[403832898,1769575816333,-300.0,0.00010912,2]
[403832899,1769575816595,-230.79643296,0.00010907,2]
[403832927,1769575832217,-2592.99691769,0.0001069,2]
[403832928,1769575832227,-744.88155291,0.00010798,2]
[403832929,1769575832236,-8085.47864774,0.00010804,2]
[403832931,1769575832245,-2.72246045,0.00010907,2]
[403832933,1769575832254,-500.0,0.00010907,2]
[403832934,1769575832263,-242.15909246,0.00010907,2]
[403832936,1769575832272,-500.0,0.00010907,2]
[403832938,1769575832281,-553.64373807,0.00010907,2]
[403832939,1769575832289,-500.0,0.00010907,2]
[403832941,1769575832298,-251.11897888,0.00010907,2]
[403832942,1769575832307,-500.0,0.00010907,2]
[403832943,1769575832316,-260.4103811,0.00010907,2]
[403832944,1769575832326,-151.0,0.00010907,2]
[403832945,1769575832336,-500.0,0.00010907,2]
[403832946,1769575832345,-270.0455652,0.00010907,2]
[403832947,1769575832355,-151.0,0.00010907,2]
[403832948,1769575832366,-500.0,0.00010907,2]
[403832949,1769575832376,-280.03725112,0.00010907,2]
[403832950,1769575832386,-151.0,0.00010907,2]
[403832951,1769575832406,-2674.60743027,0.00010907,2]
[403832952,1769575832417,-500.0,0.00010907,2]
[403832953,1769575832426,-290.39862941,0.00010907,2]
[403832954,1769575832435,-202.99767962,0.00010907,2]
[403832955,1769575832446,-301.1433787,0.00010907,2]
[403832956,1769575832456,-567.82205231,0.00010907,2]
[403832957,1769575832467,-250.0,0.00010907,2]
[403832958,1769575832476,-250.0,0.00010907,2]
[403832959,1769575832486,-250.0,0.00010907,2]
[403832960,1769575832497,-250.0,0.00010907,2]
[403832961,1769575832508,-250.0,0.00010907,2]
[403832962,1769575832519,-22202.44479896,0.00010914,2]
[403832963,1769575834481,-500.0,0.00010906,2]
[403832964,1769575834508,-500.0,0.00010906,2]
[403832965,1769575834536,-500.0,0.00010906,2]
[403832966,1769575834564,-500.0,0.00010906,2]
[403832967,1769575834590,-500.0,0.00010906,2]
[403832968,1769575834617,-500.0,0.00010906,2]
[403832969,1769575834648,-399.74840035,0.00010906,2]
[403832970,1769575834675,-500.0,0.00010906,2]
[403832971,1769575834702,-500.0,0.00010906,2]
[403832972,1769575834729,-256.40396619,0.00010906,2]
[403832973,1769575834755,-250.0,0.00010907,2]
[403832974,1769575834977,-187.70526692,0.00010907,2]
[403832999,1769575838479,-730.03980276,0.00010583,2]
[403833000,1769575838535,-835.45976051,0.00010583,2]
[403833001,1769575838548,-1706.46115048,0.00010583,2]
[403833002,1769575838560,-8.11292085,0.00010583,2]
[403833003,1769575838569,-62.29473308,0.00010907,2]
[403833004,1769575838580,-250.0,0.00010907,2]
[403833005,1769575838595,-250.0,0.00010907,2]
[403833006,1769575838604,-250.0,0.00010907,2]
[403833007,1769575838614,-208.18985384,0.00010907,2]
[403833061,1769575840651,-41.81014616,0.00010907,2]
[403833065,1769575840679,-250.0,0.00010907,2]
[403833082,1769575840828,-3e-08,0.00010914,2]
[403833084,1769575840840,-935.34258888,0.00010914,2]
[403833089,1769575840876,-2947.68852375,0.00010914,2]
[403833314,1769575843074,291.81014616,0.00010798,2]
[403833355,1769575843543,-7070.69794995,0.00010914,2]
[403833519,1769575846415,-28537.73303249,0.00010914,2]
[403833537,1769575846577,-3019.1865239,0.00010914,2]
[403833685,1769575851099,2562.03505198,0.00010914,2]
[403833686,1769575862300,300.0,0.00010913,2]
[403833687,1769575862947,500.0,0.00010906,2]
[403833688,1769575866255,5000.0,0.00010914,2]
[403833689,1769575867018,500.0,0.00010906,2]
[403833690,1769575867073,262.54450954,0.00010906,2]
[403833691,1769575867098,237.45549046,0.00010906,2]
[403833692,1769575867183,500.0,0.00010906,2]
[403833693,1769575867235,500.0,0.00010906,2]
[403833694,1769575871746,500.0,0.00010906,2]
[403833696,1769575887196,500.0,0.00010906,2]
[403833697,1769575887224,500.0,0.00010906,2]
[403833698,1769575887260,500.0,0.00010906,2]
[403833699,1769575887290,500.0,0.00010906,2]
[403833701,1769575887318,500.0,0.00010906,2]
[403833702,1769575887347,500.0,0.00010906,2]
[403833703,1769575887374,500.0,0.00010906,2]
[403833704,1769575887407,500.0,0.00010906,2]
[403833705,1769575887436,500.0,0.00010906,2]
[403833706,1769575887465,500.0,0.00010906,2]
[403833707,1769575887497,500.0,0.00010906,2]
[403833708,1769575887531,613.47065181,0.00010906,2]
[403833709,1769575887560,200.0,0.00010906,2]
[403833710,1769575887590,500.0,0.00010906,2]
[403833712,1769575887888,340.51336333,0.00010906,2]
[403833714,1769575888550,1108.5704944,0.00010914,2]
[403833715,1769575888574,3891.4295056,0.00010914,2]
[403833717,1769576111351,-5000.0,9.756e-05,2]
[403833718,1769576128478,0.01,9.756e-05,2]
[403833719,1769576128503,4999.99,9.756e-05,2]
[403833720,1769576131577,-205.0367084,9.855e-05,2]
[403833722,1769576188724,-187.61364611,9.741e-05,2]
[403833744,1769576202999,-300.0,9.848e-05,2]
[403833748,1769576264681,-2995.5292243,9.856e-05,2]
[403833749,1769576264703,-2804.4707757,0.00010483,2]
[403833750,1769576305533,500.0,0.00034853,120]
[403833760,1769576421098,-166.72,0.00010483,2]
[403833770,1769576532554,537.4,0.00034852,120]
[403833775,1769576784326,-3472.39154003,0.0001003,7]
[403833778,1769576848081,-1692.20078672,9.704e-05,2]
[403833779,1769576848132,-1688.06083982,9.704e-05,2]
[403833780,1769576848157,-6623.88832036,9.704e-05,2]
[403833781,1769576883513,185.8,2.997e-05,2]
[403833799,1769577004391,559.0,9.939e-05,2]
[403833811,1769577032342,-350.0093789,9.939e-05,2]
[403833812,1769577032353,-5000.0,9.994e-05,2]
[403833813,1769577032364,-174.02,0.0001,2]
[403833814,1769577032373,-300.0,0.00010094,2]
[403833815,1769577032382,-300.0,0.00010094,2]
[403833816,1769577032391,-300.0,0.00010094,2]
[403833817,1769577032401,-300.0,0.00010094,2]
[403833818,1769577032411,-5000.0,0.00010095,2]
[403833819,1769577032420,-300.0,0.00010195,2]
[403833820,1769577032431,-300.0,0.00010196,2]
[403833821,1769577032440,-5000.0,0.00010197,2]
[403833822,1769577032449,-355.35,0.000103,2]
[403833823,1769577032459,-341.33144489,0.00010313,2]
[403833824,1769577032468,-250.0,0.00010358,2]
[403833825,1769577032477,-175.45543062,0.00010482,2]
[403833826,1769577032492,-58.23464234,0.00010482,2]
[403833827,1769577032501,-322.34183174,0.00010482,2]
[403833846,1769577038615,-1289.49080268,0.00010378,2]
[403833847,1769577038627,-746.9253651,0.00010378,2]
[403833849,1769577038638,-353.3981776,0.00010378,2]
[403833860,1769577040701,-2610.18565462,0.00010378,2]
[403833862,1769577040713,-211.08315559,0.00010481,2]
[403833864,1769577040723,-500.0,0.00010481,2]
[403833866,1769577040732,-500.0,0.00010481,2]
[403833868,1769577040741,-500.0,0.00010481,2]
[403833870,1769577040751,-500.0,0.00010481,2]
[403833872,1769577040760,-470.41635249,0.00010481,2]
[403833874,1769577040769,-500.0,0.00010481,2]
[403833875,1769577040778,-500.0,0.00010481,2]
[403833876,1769577040787,-442.03917854,0.00010481,2]
[403833877,1769577040816,-13.75090368,0.00010481,2]
[403833879,1769577040834,-44.20991778,0.00010481,2]
[403833880,1769577040846,-500.0,0.00010481,2]
[403833881,1769577040855,-83.10498472,0.00010481,2]
[403833926,1769577046709,-259.30629665,0.00010359,2]
[403833927,1769577046718,-1864.91276028,0.00010376,2]
[403833939,1769577218879,170.14,0.00030136,120]
[403833943,1769577428973,1000.0,0.0001,7]
[403833944,1769577437334,1000.0,0.0001,8]
[403833945,1769577446882,-503.13974945,0.0001,7]
[403833946,1769577446913,-4000.0,0.0001,8]
[403833948,1769577493737,-5000.0,0.00010162,9]
[403833949,1769577503280,-1200.0,0.00010265,2]
[403833950,1769577503309,-300.0,0.00010265,2]
[403833951,1769577503338,-300.0,0.00010265,2]
[403833952,1769577503675,1800.0,0.00010162,2]
[403833953,1769577506206,500.0,0.00010258,2]
[403833954,1769577506634,500.0,0.00010258,2]
[403833956,1769577557021,-946.66533252,9.753e-05,2]
[403833957,1769577557050,-3782.87466877,9.753e-05,2]
[403833958,1769577557280,-551.58798377,9.753e-05,2]
[403833959,1769577558884,2204.14558316,9.753e-05,2]
[403833960,1769577666442,-712.29891267,9.753e-05,2]
[403833961,1769577666473,-2846.34645501,9.753e-05,2]
[403833962,1769577668555,815.49039355,9.753e-05,2]
[403833963,1769577671645,2067.22887109,9.753e-05,2]
[403833964,1769577671668,1191.47074152,9.753e-05,2]
[403833965,1769577682328,-353.3981776,9.894e-05,2]
[403833969,1769577705170,703.1158352,9.171e-05,2]
[403833970,1769577731235,-5000.0,9.893e-05,2]
[403833972,1769577743894,0.01,9.893e-05,2]
[403833973,1769577743920,4999.99,9.893e-05,2]
[403833974,1769577747954,-300.0,9.994e-05,2]
[403833975,1769577747979,-300.0,9.994e-05,2]
[403833976,1769577748003,-300.0,9.994e-05,2]
[403833977,1769577748027,-1200.0,9.994e-05,2]
[403833978,1769577748052,-300.0,9.994e-05,2]
[403833981,1769577762351,-1141.34263854,9.995e-05,2]
[403833982,1769577762381,-3151.95416877,9.995e-05,2]
[403833983,1769577765356,-1413.41638538,9.995e-05,2]
[403833984,1769577765387,-704.73111243,9.995e-05,2]
[403833985,1769577765418,-2816.10552526,9.995e-05,2]
[403833986,1769577766394,20.0,9.994e-05,2]
[403833987,1769577768379,-4980.0,9.994e-05,2]
[403833988,1769577802681,-5000.0,9.895e-05,2]
[403833989,1769577811643,0.01,9.895e-05,2]
[403833990,1769577811667,4999.99,9.895e-05,2]
[403833991,1769577834286,-1678.04604519,9.895e-05,2]
[403833992,1769577835113,5000.0,9.796e-05,2]
[403833994,1769577842933,1643.91790962,9.895e-05,2]
[403833995,1769577842956,2004.26461202,9.895e-05,2]
[403833996,1769577844991,285.97,0.000239,120]
[403833997,1769577849796,-359.0052889,9.945e-05,2]
[403833998,1769577858705,5000.0,9.945e-05,2]
[403834001,1769577898833,-5000.0,9.895e-05,2]
[403834002,1769577905070,0.01,9.895e-05,2]
[403834003,1769577905094,4999.99,9.895e-05,2]
[403834005,1769577930428,-5000.0,9.895e-05,2]
[403834009,1769577961621,-5000.0,9.895e-05,2]
[403834010,1769577974118,0.01,9.895e-05,2]
[403834011,1769577974143,4999.99,9.895e-05,2]
[403834022,1769578008990,-5000.0,9.895e-05,2]
[403834023,1769578019625,0.01,9.895e-05,2]
[403834024,1769578019650,4999.99,9.895e-05,2]
[403834031,1769578042199,8990.7619215,9.152e-05,2]
[403834033,1769578055255,-5000.0,9.895e-05,2]
[403834042,1769578065336,0.01,9.895e-05,2]
[403834043,1769578065361,4020.23142839,9.895e-05,2]
[403834173,1769578204251,559.0,9.939e-05,2]
[403834177,1769578220963,-4455.96216132,9.939e-05,2]
[403834204,1769578231616,-292.32099348,9.939e-05,2]
[403834205,1769578231625,-357.84664736,0.00010015,2]
[403834206,1769578231635,-1673.53389876,0.00010035,2]
[403834207,1769578231645,-300.0,0.00010083,2]
[403834208,1769578231654,-300.0,0.00010083,2]
[403834209,1769578231663,-295.0,0.00010083,2]
[403834210,1769578231673,-300.0,0.00010083,2]
[403834211,1769578231682,-50000.0,0.00010084,2]
[403834212,1769578231691,-500.0,0.00010084,2]
[403834213,1769578231701,-500.0,0.00010084,2]
[403834214,1769578231710,-500.0,0.00010084,2]
[403834215,1769578231719,-500.0,0.00010084,2]
[403834216,1769578231728,-500.0,0.00010084,2]
[403834217,1769578231738,-500.0,0.00010084,2]
[403834218,1769578231747,-500.0,0.00010084,2]
[403834219,1769578231756,-309.45122585,0.00010084,2]
[403834220,1769578231765,-500.0,0.00010084,2]
[403834221,1769578231774,-500.0,0.00010084,2]
[403834222,1769578231783,-500.0,0.00010084,2]
[403834223,1769578231792,-500.0,0.00010084,2]
[403834224,1769578231801,-500.0,0.00010084,2]
[403834225,1769578231810,-500.0,0.00010084,2]
[403834226,1769578231819,-500.0,0.00010084,2]
[403834227,1769578231828,-513.21484814,0.00010084,2]
[403834228,1769578231837,-208.61506419,0.00010084,2]
[403834229,1769578231846,-500.0,0.00010084,2]
[403834230,1769578231855,-500.0,0.00010084,2]
[403834231,1769578231864,-500.0,0.00010084,2]
[403834232,1769578231874,-500.0,0.00010084,2]
[403834233,1769578231883,-500.0,0.00010084,2]
[403834234,1769578231892,-500.0,0.00010084,2]
[403834235,1769578231901,-500.0,0.00010084,2]
[403834236,1769578231911,-500.0,0.00010084,2]
[403834237,1769578231920,-500.0,0.00010084,2]
[403834238,1769578231929,-500.0,0.00010084,2]
[403834239,1769578231939,-500.0,0.00010084,2]
[403834240,1769578231949,-500.0,0.00010084,2]
[403834241,1769578231958,-500.0,0.00010084,2]
[403834242,1769578231968,-288.67050164,0.00010084,2]
[403834243,1769578231977,-150.87381515,0.00010085,2]
[403834244,1769578231986,-151.73385512,0.00010085,2]
[403834245,1769578231995,-151.35136944,0.00010085,2]
[403834246,1769578232004,-200.0,0.00010085,2]
[403834247,1769578232014,-207.25851724,0.00010085,2]
[403834248,1769578232023,-500.0,0.00010085,2]
[403834249,1769578232032,-500.0,0.00010085,2]
[403834250,1769578232041,-500.0,0.00010085,2]
[403834251,1769578232050,-500.0,0.00010221,2]
[403834252,1769578232059,-154.58953882,0.00010222,2]
[403834253,1769578232068,-500.0,0.00010222,2]
[403834254,1769578232077,-351.38941409,0.00010222,2]
[403834255,1769578232086,-507.23954372,0.00010222,2]
[403834256,1769578232095,-203.73714875,0.00010359,2]
[403834257,1769578232104,-500.0,0.00010359,2]
[403834258,1769578232113,-203.38418679,0.00010359,2]
[403834259,1769578232123,-262.81094455,0.00010397,2]
[403834260,1769578232132,-2674.60743027,0.00010397,2]
[403834261,1769578232140,-500.0,0.00010397,2]
[403834262,1769578232149,-500.0,0.00010397,2]
[403834263,1769578232159,-201.93286099,0.00010397,2]
[403834264,1769578232167,-500.0,0.00010397,2]
[403834265,1769578232177,-209.40437684,0.00010397,2]
[403834266,1769578232186,-196.62520751,0.00010397,2]
[403834267,1769578232195,-500.0,0.00010397,2]
[403834268,1769578232204,-217.15233878,0.00010397,2]
[403834269,1769578232213,-500.0,0.00010397,2]
[403834270,1769578232222,-225.18697532,0.00010397,2]
[403834271,1769578232231,-500.0,0.00010397,2]
[403834272,1769578232240,-233.51889341,0.00010397,2]
[403834273,1769578232249,-500.0,0.00010397,2]
[403834274,1769578232259,-242.15909246,0.00010397,2]
[403834275,1769578232268,-500.0,0.00010397,2]
[403834276,1769578232277,-251.11897888,0.00010397,2]
[403834277,1769578232285,-500.0,0.00010397,2]
[403834278,1769578232294,-260.4103811,0.00010397,2]
[403834279,1769578232303,-500.0,0.00010397,2]
[403834280,1769578232312,-270.0455652,0.00010397,2]
[403834281,1769578232322,-500.0,0.00010397,2]
[403834282,1769578232330,-280.03725112,0.00010397,2]
[403834283,1769578232339,-500.0,0.00010397,2]
[403834284,1769578232348,-290.39862941,0.00010397,2]
[403834285,1769578232357,-301.1433787,0.00010397,2]
[403834286,1769578232366,-1686.71876763,0.00010462,2]
[403834287,1769578232376,-151.0,0.00010482,2]
[403834288,1769578232386,-152.0,0.00010482,2]
[403834289,1769578232395,-151.0,0.00010482,2]
[403834290,1769578232405,-293.03484022,0.00010482,2]
[403834291,1769578232414,-152.0,0.00010483,2]
[403834292,1769578232424,-152.0,0.00010483,2]
[403834293,1769578232433,-152.0,0.00010483,2]
[403834294,1769578232444,-152.0,0.00010483,2]
[403834295,1769578232453,-240.0,0.00010483,2]
[403834296,1769578232463,-412.3721687,0.00010483,2]
[403834297,1769578232472,-500.0,0.00010483,2]
[403834298,1769578232483,-500.0,0.00010483,2]
[403834299,1769578232491,-500.0,0.00010483,2]
[403834300,1769578232501,-500.0,0.00010495,2]
[403834301,1769578232510,-500.0,0.00010496,2]
[403834302,1769578232521,-153.0,0.000105,2]
[403834303,1769578232531,-153.0,0.000106,2]
[403834304,1769578232540,-153.0,0.000106,2]
[403834305,1769578232550,-153.0,0.000106,2]
[403834306,1769578232559,-506.50063401,0.00010633,2]
[403834307,1769578232568,-800.0,0.00010703,2]
[403834308,1769578232578,-500.0,0.00010769,2]
[403834309,1769578232587,-250.0,0.0001077,2]
[403834310,1769578232596,-433.55,0.00010807,2]
[403834311,1769578232606,-2773.56790519,0.00010945,2]
[403834312,1769578232615,-168.1162592,0.00010959,2]
[403834313,1769578232625,-155.14,0.00011006,2]
[403834314,1769578232634,-749.70412984,0.00011013,2]
[403834315,1769578232643,-296.34616884,0.00011013,2]
[403834316,1769578232652,-213.30138156,0.00011013,2]
[403834317,1769578232663,-500.0,0.00011043,2]
[403834318,1769578232672,-286.0,0.0001109,2]
[403834319,1769578232681,-420.0,0.0001109,2]
[403834320,1769578232690,-300.0,0.0001113,2]
[403834321,1769578232700,-300.0,0.0001113,2]
[403834322,1769578232709,-300.0,0.0001113,2]
[403834323,1769578232719,-300.0,0.0001113,2]
[403834324,1769578232728,-300.0,0.0001113,2]
[403834325,1769578232738,-300.0,0.0001113,2]
[403834326,1769578232748,-300.0,0.0001113,2]
[403834327,1769578232759,-300.0,0.0001113,2]
[403834328,1769578232768,-300.0,0.0001113,2]
[403834329,1769578232778,-300.0,0.0001113,2]
[403834330,1769578232787,-300.0,0.0001113,2]
[403834331,1769578232796,-300.0,0.0001113,2]
[403834332,1769578232805,-300.0,0.0001113,2]
[403834333,1769578232815,-300.0,0.0001113,2]
[403834334,1769578232824,-300.0,0.0001113,2]
[403834335,1769578232834,-600.0,0.00011131,2]
[403834336,1769578232843,-500.0,0.00011317,2]
[403834337,1769578232852,-293.59383327,0.00011317,2]
[403834338,1769578232861,-166.0,0.00011349,2]
[403834339,1769578232871,-164.0,0.00011349,2]
[403834340,1769578232880,-164.0,0.00011349,2]
[403834341,1769578232889,-164.0,0.00011349,2]
[403834342,1769578232898,-164.0,0.00011349,2]
[403834343,1769578232907,-226.28710612,0.00011349,2]
[403834344,1769578232916,-2876.18991768,0.00011493,2]
[403834345,1769578232925,-500.0,0.00011591,2]
[403834346,1769578232935,-152.09,0.00012,2]
[403834347,1769578232945,-158.63,0.00012,2]
[403834348,1769578232954,-422.25904388,0.00012015,2]
[403834349,1769578232963,-2982.60894464,0.00012041,2]
[403834350,1769578232972,-960.58186922,0.00012057,2]
[403834351,1769578232981,-1294.1360682,0.00012057,2]
[403834352,1769578232993,-167.0,0.00012198,2]
[403834353,1769578233005,-720.0,0.00012244,2]
[403834354,1769578233017,-369.09,0.00012329,2]
[403834355,1769578233029,-307.57,0.00012329,2]
[403834356,1769578233040,-256.31,0.00012329,2]
[403834357,1769578233052,-213.59,0.00012329,2]
[403834358,1769578233062,-177.99,0.00012329,2]
[403834359,1769578233072,-890.0,0.00012329,2]